{"text_format":"1","workbook":"xlsx","n_sheets":3,"sheets":["Data","Chart1","Help"],"not_rendered":{"charts":2,"images":1,"macros":1,"external_links":0,"defined_names":0,"comments":0,"pivot_tables":1},"unopened":[{"sheet":"Chart1","index":1,"reason":"not_a_worksheet"}],"bounds":{"document_bytes":16777216,"sheet_cells":100000,"rows_first":2000,"rows_last":500,"rows_between":2000,"halvings":0,"cell_chars":16384,"cell_head_chars":4096},"cells_cut":0,"cells_raw":0,"read":"whole","date_system":"1900"}

{"sheet":"Data","index":0,"n_rows":48,"n_cols":10,"rows_kept":48,"cut":false,"hidden":false,"merged":[]}
[]
[]
[]
[null,"Dir","Level","Scale","1","2","3","4",null,"Count of Value"]
[null,-1,1,{"$f":"[Dir]*[Level]","v":-1},{"$f":"ABS(IF([Scale]<0,MOD(Table2[#Headers]*-1,4)+1,Table2[#Headers])*[Scale]*RANDBETWEEN(0,1))","v":0},{"$f":"ABS(IF([Scale]<0,MOD(Table2[#Headers]*-1,4)+1,Table2[#Headers])*[Scale]*RANDBETWEEN(0,1))","v":0},{"$f":"ABS(IF([Scale]<0,MOD(Table2[#Headers]*-1,4)+1,Table2[#Headers])*[Scale]*RANDBETWEEN(0,1))","v":2},{"$f":"ABS(IF([Scale]<0,MOD(Table2[#Headers]*-1,4)+1,Table2[#Headers])*[Scale]*RANDBETWEEN(0,1))","v":0},null,32]
[null,-1,2,{"$f":"[Dir]*[Level]","v":-2},{"$f":"ABS(IF([Scale]<0,MOD(Table2[#Headers]*-1,4)+1,Table2[#Headers])*[Scale]*RANDBETWEEN(0,1))","v":8},{"$f":"ABS(IF([Scale]<0,MOD(Table2[#Headers]*-1,4)+1,Table2[#Headers])*[Scale]*RANDBETWEEN(0,1))","v":6},{"$f":"ABS(IF([Scale]<0,MOD(Table2[#Headers]*-1,4)+1,Table2[#Headers])*[Scale]*RANDBETWEEN(0,1))","v":0},{"$f":"ABS(IF([Scale]<0,MOD(Table2[#Headers]*-1,4)+1,Table2[#Headers])*[Scale]*RANDBETWEEN(0,1))","v":2}]
[null,-1,3,{"$f":"[Dir]*[Level]","v":-3},{"$f":"ABS(IF([Scale]<0,MOD(Table2[#Headers]*-1,4)+1,Table2[#Headers])*[Scale]*RANDBETWEEN(0,1))","v":0},{"$f":"ABS(IF([Scale]<0,MOD(Table2[#Headers]*-1,4)+1,Table2[#Headers])*[Scale]*RANDBETWEEN(0,1))","v":0},{"$f":"ABS(IF([Scale]<0,MOD(Table2[#Headers]*-1,4)+1,Table2[#Headers])*[Scale]*RANDBETWEEN(0,1))","v":6},{"$f":"ABS(IF([Scale]<0,MOD(Table2[#Headers]*-1,4)+1,Table2[#Headers])*[Scale]*RANDBETWEEN(0,1))","v":0}]
[null,-1,4,{"$f":"[Dir]*[Level]","v":-4},{"$f":"ABS(IF([Scale]<0,MOD(Table2[#Headers]*-1,4)+1,Table2[#Headers])*[Scale]*RANDBETWEEN(0,1))","v":16},{"$f":"ABS(IF([Scale]<0,MOD(Table2[#Headers]*-1,4)+1,Table2[#Headers])*[Scale]*RANDBETWEEN(0,1))","v":12},{"$f":"ABS(IF([Scale]<0,MOD(Table2[#Headers]*-1,4)+1,Table2[#Headers])*[Scale]*RANDBETWEEN(0,1))","v":8},{"$f":"ABS(IF([Scale]<0,MOD(Table2[#Headers]*-1,4)+1,Table2[#Headers])*[Scale]*RANDBETWEEN(0,1))","v":0}]
[null,1,1,{"$f":"[Dir]*[Level]","v":1},{"$f":"ABS(IF([Scale]<0,MOD(Table2[#Headers]*-1,4)+1,Table2[#Headers])*[Scale]*RANDBETWEEN(0,1))","v":0},{"$f":"ABS(IF([Scale]<0,MOD(Table2[#Headers]*-1,4)+1,Table2[#Headers])*[Scale]*RANDBETWEEN(0,1))","v":2},{"$f":"ABS(IF([Scale]<0,MOD(Table2[#Headers]*-1,4)+1,Table2[#Headers])*[Scale]*RANDBETWEEN(0,1))","v":0},{"$f":"ABS(IF([Scale]<0,MOD(Table2[#Headers]*-1,4)+1,Table2[#Headers])*[Scale]*RANDBETWEEN(0,1))","v":0}]
[null,1,2,{"$f":"[Dir]*[Level]","v":2},{"$f":"ABS(IF([Scale]<0,MOD(Table2[#Headers]*-1,4)+1,Table2[#Headers])*[Scale]*RANDBETWEEN(0,1))","v":0},{"$f":"ABS(IF([Scale]<0,MOD(Table2[#Headers]*-1,4)+1,Table2[#Headers])*[Scale]*RANDBETWEEN(0,1))","v":0},{"$f":"ABS(IF([Scale]<0,MOD(Table2[#Headers]*-1,4)+1,Table2[#Headers])*[Scale]*RANDBETWEEN(0,1))","v":6},{"$f":"ABS(IF([Scale]<0,MOD(Table2[#Headers]*-1,4)+1,Table2[#Headers])*[Scale]*RANDBETWEEN(0,1))","v":0}]
[null,1,3,{"$f":"[Dir]*[Level]","v":3},{"$f":"ABS(IF([Scale]<0,MOD(Table2[#Headers]*-1,4)+1,Table2[#Headers])*[Scale]*RANDBETWEEN(0,1))","v":0},{"$f":"ABS(IF([Scale]<0,MOD(Table2[#Headers]*-1,4)+1,Table2[#Headers])*[Scale]*RANDBETWEEN(0,1))","v":6},{"$f":"ABS(IF([Scale]<0,MOD(Table2[#Headers]*-1,4)+1,Table2[#Headers])*[Scale]*RANDBETWEEN(0,1))","v":9},{"$f":"ABS(IF([Scale]<0,MOD(Table2[#Headers]*-1,4)+1,Table2[#Headers])*[Scale]*RANDBETWEEN(0,1))","v":0}]
[null,1,4,{"$f":"[Dir]*[Level]","v":4},{"$f":"ABS(IF([Scale]<0,MOD(Table2[#Headers]*-1,4)+1,Table2[#Headers])*[Scale]*RANDBETWEEN(0,1))","v":0},{"$f":"ABS(IF([Scale]<0,MOD(Table2[#Headers]*-1,4)+1,Table2[#Headers])*[Scale]*RANDBETWEEN(0,1))","v":0},{"$f":"ABS(IF([Scale]<0,MOD(Table2[#Headers]*-1,4)+1,Table2[#Headers])*[Scale]*RANDBETWEEN(0,1))","v":0},{"$f":"ABS(IF([Scale]<0,MOD(Table2[#Headers]*-1,4)+1,Table2[#Headers])*[Scale]*RANDBETWEEN(0,1))","v":16}]
[]
[]
[]
[null,"Level","Intensity","Count"]
[null,-1,1,4]
[null,-1,2,3]
[null,-1,3,0]
[null,-1,4,0]
[null,-2,1,0]
[null,-2,2,6]
[null,-2,3,4]
[null,-2,4,2]
[null,-3,1,12]
[null,-3,2,0]
[null,-3,3,6]
[null,-3,4,3]
[null,-4,1,0]
[null,-4,2,12]
[null,-4,3,0]
[null,-4,4,0]
[null,1,1,0]
[null,1,2,0]
[null,1,3,0]
[null,1,4,4]
[null,2,1,2]
[null,2,2,4]
[null,2,3,0]
[null,2,4,8]
[null,3,1,0]
[null,3,2,0]
[null,3,3,0]
[null,3,4,0]
[null,4,1,4]
[null,4,2,0]
[null,4,3,12]
[null,4,4,16]

{"sheet":"Help","index":2,"n_rows":0,"n_cols":0,"rows_kept":0,"cut":false,"hidden":false,"merged":[]}